[Event "Hungarian Youth-ch U12 2022"]
[Site "Eger"]
[Date "2022.07.30"]
[Round "8.4"]
[White "Feher, Botond"]
[Black "Horvath, Matyas Sandor"]
[Result "1-0"]
[ECO "A36"]
[WhiteElo "1747"]
[BlackElo "1431"]
[Annotator "NA RC COMBH"]
[PlyCount "85"]
[EventDate "2022.07.21"]
[EventType "tourn"]
[EventCountry "HUN"]
[SourceTitle "playchess.com"]
[Source "ChessBase"]
[SourceQuality "1"]
[TimeControl "40/5400+30:1800+30"]

1. c4 {[%emt 0:00:32]} c5 {[%emt 0:00:35]} 2. Nc3 {[%emt 0:00:07]} Nc6 {[%emt 0:00:09]} 3. g3 {[%emt 0:00:08]} g6 {[%emt 0:00:18]} 4. Bg2 {[%emt 0:00:11]} Bg7 {[%emt 0:00:16]} 5. e4 {[%emt 0:00:09]} e6 {[%emt 0:03:19]} 6. Nge2 {[%emt 0:05:42]} Nge7 {[%emt 0:04:11]} 7. O-O {[%emt 0:02:22]} O-O {[%emt 0:01:35]} 8. d3 {[%emt 0:07:06]} d6 {[%emt 0:05:11]} 9. f4 {[%emt 0:07:51]} a6 {[%emt 0:08:48]} 10. Bd2 {[%emt 0:25:29]} Bd7 {[%emt 0:15:27]} 11. Rf3 {[%emt 0:13:09]} Rb8 {[%emt 0:12:57]} 12. Qe1 {[%emt 0:07:22]} b5 {[%emt 0:09:56]} 13. Rb1 {[%emt 0:01:18]} b4 {[%emt 0:01:47]} 14. Nd1 {[%emt 0:00:20]} Nd4 {[%emt 0:02:38]} 15. Nxd4 {[%emt 0:01:54]} Bxd4+ {[%emt 0:00:17]} 16. Be3 {[%emt 0:00:38]} Bg7 {[%emt 0:00:53]} 17. g4 {[%emt 0:03:03]} Nc6 {[%emt 0:06:01]} 18. b3 {[%emt 0:10:13]} Nd4 {[%emt 0:05:19]} 19. Bxd4 {[%emt 0:00:11]} Bxd4+ {[%emt 0:00:27]} 20. Kh1 {[%emt 0:00:04]} a5 {[%emt 0:03:27]} 21. Ne3 {[%emt 0:03:48]} a4 {[%emt 0:02:17]} 22. Qg3 {[%emt 0:00:37]} axb3 {[%emt 0:02:10]} 23. axb3 {[%emt 0:00:22]} Bc6 {[%emt 0:00:37]} 24. g5 {[%emt 0:01:20]} f5 {[%emt 0:02:06]} 25. Qh4 {[%emt 0:01:05]} Qd7 {[%emt 0:01:36]} 26. Rh3 {[%emt 0:00:26]} Ra8 {[%emt 0:02:36]} 27. exf5 {[%emt 0:04:18]} Bxg2+ {[%emt 0:00:22]} 28. Kxg2 {[%emt 0:00:02]} exf5 {[%emt 0:00:44]} 29. Nd5 {[%emt 0:00:45]} Ra2+ {[%emt 0:01:31]} 30. Kh1 {[%emt 0:00:43]} Qg7 {[%emt 0:02:52]} 31. Re1 {[%emt 0:01:14]} Ra1 {[%emt 0:00:45]} 32. Rxa1 {[%emt 0:00:32]} Bxa1 {[%emt 0:00:10]} 33. Re3 {[%emt 0:00:01]} Bd4 {[%emt 0:01:29]} 34. Re7 {[%emt 0:00:26]} Rf7 {[%emt 0:00:29]} 35. Re8+ {[%emt 0:03:05]} Rf8 {[%emt 0:00:12]} 36. Nf6+ {[%emt 0:00:54]} Bxf6 {[%emt 0:00:39]} 37. gxf6 {[%emt 0:00:07]} Qh8 {[%emt 0:00:35]} 38. f7+ {[%emt 0:00:23]} Kg7 {[%emt 0:00:38]} 39. Qe7 {[%emt 0:00:03]} Rxf7 {[%emt 0:00:35]} 40. Qxf7+ {[%emt 0:00:00]} Kxf7 {[%emt 0:00:00]} 41. Rxh8 {[%emt 0:00:09]} Kg7 {[%emt 0:00:41]} 42. Rd8 {[%emt 0:00:06]} Kf7 {[%emt 0:00:40]} 43. Rxd6 {[%emt 0:00:03]} 1-0

[Event "Hungarian Youth-ch U12 2022"]
[Site "Eger"]
[Date "2022.07.30"]
[Round "8.5"]
[White "Bod, Marton"]
[Black "Karacsonyi, Bank"]
[Result "0-1"]
[ECO "C29"]
[WhiteElo "1758"]
[BlackElo "1791"]
[Annotator "NA RC COMBH"]
[PlyCount "32"]
[EventDate "2022.07.21"]
[EventType "tourn"]
[EventCountry "HUN"]
[SourceTitle "playchess.com"]
[Source "ChessBase"]
[SourceQuality "1"]
[TimeControl "40/5400+30:1800+30"]

1. e4 {[%emt 0:00:34]} e5 {[%emt 0:00:43]} 2. Nc3 {[%emt 0:00:39]} Nf6 {[%emt 0:00:13]} 3. f4 {[%emt 0:00:24]} d5 {[%emt 0:00:09]} 4. fxe5 {[%emt 0:00:32]} Nxe4 {[%emt 0:00:06]} 5. Qf3 {[%emt 0:01:07]} f5 {[%emt 0:00:10]} 6. Nh3 {[%emt 0:02:15]} Nc6 {[%emt 0:05:10]} 7. Bb5 {[%emt 0:02:36]} Qh4+ {[%emt 0:01:10]} 8. Kf1 {[%emt 0:01:36]} Bc5 {[%emt 0:01:18]} 9. Nxd5 {[%emt 0:02:36]} O-O {[%emt 0:18:18]} 10. Bxc6 {[%emt 0:02:08]} bxc6 {[%emt 0:00:21]} 11. Ndf4 {[%emt 0:01:37]} g5 {[%emt 0:08:31]} 12. Nd3 {[%emt 0:16:02]} Ba6 {[%emt 0:03:56]} 13. b3 {[%emt 0:05:23]} Rad8 {[%emt 0:01:19]} 14. c4 {[%emt 0:00:52]} g4 {[%emt 0:00:33]} 15. Qf4 {[%emt 0:08:17]} Rxd3 {[%emt 0:00:18]} 16. Ke2 {[%emt 0:02:05]} Rd4 {[%emt 0:00:29]} 0-1

[Event "Hungarian Youth-ch U12 2022"]
[Site "Eger"]
[Date "2022.07.30"]
[Round "8.6"]
[White "Torok, Rita"]
[Black "Molnar, Dalma Reka"]
[Result "1/2-1/2"]
[ECO "B24"]
[WhiteElo "1275"]
[BlackElo "1521"]
[Annotator "NA RC COMBH"]
[PlyCount "78"]
[EventDate "2022.07.21"]
[EventType "tourn"]
[EventCountry "HUN"]
[SourceTitle "playchess.com"]
[Source "ChessBase"]
[SourceQuality "1"]
[TimeControl "40/5400+30:1800+30"]

1. e4 {[%emt 0:00:33]} c5 {[%emt 0:00:48]} 2. Nc3 {[%emt 0:00:13]} Nc6 {[%emt 0:00:24]} 3. Nf3 {[%emt 0:00:14]} g6 {[%emt 0:00:12]} 4. Bc4 {[%emt 0:01:46]} Bg7 {[%emt 0:00:55]} 5. O-O {[%emt 0:00:48]} e6 {[%emt 0:00:11]} 6. Re1 {[%emt 0:02:32]} Nge7 {[%emt 0:01:34]} 7. d3 {[%emt 0:01:52]} O-O {[%emt 0:00:21]} 8. Be3 {[%emt 0:04:37]} d5 {[%emt 0:03:06]} 9. Bxd5 {[%emt 0:07:04]} exd5 {[%emt 0:00:09]} 10. Bxc5 {[%emt 0:02:10]} dxe4 {[%emt 0:04:10]} 11. Nxe4 {[%emt 0:02:37]} b6 {[%emt 0:09:58]} 12. Bxe7 {[%emt 0:00:36]} Nxe7 {[%emt 0:01:09]} 13. Rb1 {[%emt 0:02:44]} Bg4 {[%emt 0:01:37]} 14. h3 {[%emt 0:01:31]} Bxf3 {[%emt 0:00:56]} 15. Qxf3 {[%emt 0:00:16]} Nf5 {[%emt 0:00:43]} 16. c3 {[%emt 0:03:00]} Qc7 {[%emt 0:07:33]} 17. g3 {[%emt 0:04:48]} Nd6 {[%emt 0:06:37]} 18. Qf4 {[%emt 0:02:32]} Nb5 {[%emt 0:02:04]} 19. Qh4 {[%emt 0:06:03]} Rac8 {[%emt 0:03:02]} 20. a4 {[%emt 0:04:28]} Nd6 {[%emt 0:02:10]} 21. Nxd6 {[%emt 0:01:35]} Qxd6 {[%emt 0:00:05]} 22. Qe4 {[%emt 0:01:48]} Rfd8 {[%emt 0:02:25]} 23. d4 {[%emt 0:02:45]} a6 {[%emt 0:02:08]} 24. Qb7 {[%emt 0:01:36]} b5 {[%emt 0:03:44]} 25. axb5 {[%emt 0:00:29]} axb5 {[%emt 0:01:36]} 26. Qxb5 {[%emt 0:00:14]} Rb8 {[%emt 0:00:57]} 27. Qe2 {[%emt 0:01:02]} Rb7 {[%emt 0:00:53]} 28. Qf3 {[%emt 0:00:35]} Rdb8 {[%emt 0:00:16]} 29. b4 {[%emt 0:01:30]} Rc7 {[%emt 0:00:28]} 30. Rb3 {[%emt 0:00:57]} Qa6 {[%emt 0:03:00]} 31. Qe2 {[%emt 0:03:09]} Qxe2 {[%emt 0:02:58]} 32. Rxe2 {[%emt 0:00:09]} Rbc8 {[%emt 0:00:15]} 33. Re3 {[%emt 0:01:24]} Bh6 {[%emt 0:00:57]} 34. Rd3 {[%emt 0:00:13]} Kf8 {[%emt 0:01:36]} 35. f4 {[%emt 0:00:46]} Ke7 {[%emt 0:00:33]} 36. Kf2 {[%emt 0:00:43]} Kd6 {[%emt 0:00:13]} 37. Re3 {[%emt 0:01:32]} Bg7 {[%emt 0:05:16]} 38. Ke2 {[%emt 0:02:50]} Kd5 {[%emt 0:04:55]} 39. Kd3 {[%emt 0:02:21]} Rb8 {[%emt 0:06:02]} 1/2-1/2

[Event "Hungarian Youth-ch U12 2022"]
[Site "Eger"]
[Date "2022.07.30"]
[Round "8.8"]
[White "Balogh, Gerda"]
[Black "Kiss, Inez"]
[Result "0-1"]
[ECO "C00"]
[WhiteElo "1531"]
[BlackElo "1397"]
[Annotator "NA RC COMBH"]
[PlyCount "114"]
[EventDate "2022.07.21"]
[EventType "tourn"]
[EventCountry "HUN"]
[SourceTitle "playchess.com"]
[Source "ChessBase"]
[SourceQuality "1"]
[TimeControl "40/5400+30:1800+30"]

1. e4 {[%emt 0:00:32]} e6 {[%emt 0:00:33]} 2. d4 {[%emt 0:00:11]} d5 {[%emt 0:00:03]} 3. f3 {[%emt 0:00:09]} dxe4 {[%emt 0:01:05]} 4. fxe4 {[%emt 0:00:17]} Qh4+ {[%emt 0:01:41]} 5. Ke2 {[%emt 0:20:58]} Qxe4+ {[%emt 0:01:02]} 6. Be3 {[%emt 0:00:18]} Nf6 {[%emt 0:03:08]} 7. Qd3 {[%emt 0:00:22]} Nc6 {[%emt 0:03:22]} 8. Nc3 {[%emt 0:00:54]} Qxd3+ {[%emt 0:01:42]} 9. Kxd3 {[%emt 0:00:33]} Ng4 {[%emt 0:02:29]} 10. Re1 {[%emt 0:01:22]} b6 {[%emt 0:05:23]} 11. Ne4 {[%emt 0:06:48]} Ba6+ {[%emt 0:05:27]} 12. Kd2 {[%emt 0:01:07]} Bxf1 {[%emt 0:02:26]} 13. Rxf1 {[%emt 0:00:12]} Nxe3 {[%emt 0:01:29]} 14. Kxe3 {[%emt 0:00:20]} Be7 {[%emt 0:03:02]} 15. Nh3 {[%emt 0:00:45]} h6 {[%emt 0:03:23]} 16. g4 {[%emt 0:00:35]} g5 {[%emt 0:01:58]} 17. Rf2 {[%emt 0:02:02]} O-O {[%emt 0:06:17]} 18. Rhf1 {[%emt 0:02:34]} Nb4 {[%emt 0:03:28]} 19. c3 {[%emt 0:00:36]} Nd5+ {[%emt 0:01:10]} 20. Kd3 {[%emt 0:00:42]} Rad8 {[%emt 0:04:22]} 21. a3 {[%emt 0:03:51]} c5 {[%emt 0:01:27]} 22. Ke2 {[%emt 0:03:34]} cxd4 {[%emt 0:00:38]} 23. cxd4 {[%emt 0:00:25]} Rc8 {[%emt 0:03:33]} 24. Kd3 {[%emt 0:02:27]} b5 {[%emt 0:02:22]} 25. Ng1 {[%emt 0:05:22]} Nf4+ {[%emt 0:00:40]} 26. Ke3 {[%emt 0:00:23]} Rfd8 {[%emt 0:02:10]} 27. Ne2 Nd5+ {[%emt 0:04:16]} 28. Kd3 {[%emt 0:02:31]} f6 {[%emt 0:04:17]} 29. N2c3 {[%emt 0:08:35]} Nf4+ {[%emt 0:03:34]} 30. Ke3 {[%emt 0:00:43]} a6 {[%emt 0:00:57]} 31. Ne2 {[%emt 0:01:21]} Nd5+ {[%emt 0:02:36]} 32. Kf3 {[%emt 0:01:33]} f5 {[%emt 0:02:24]} 33. gxf5 {[%emt 0:01:26]} exf5 {[%emt 0:02:37]} 34. N4g3 {[%emt 0:02:45]} g4+ {[%emt 0:01:13]} 35. Kg2 {[%emt 0:00:34]} Ne3+ {[%emt 0:00:09]} 36. Kg1 {[%emt 0:00:53]} Nxf1 {[%emt 0:00:14]} 37. Rxf1 {[%emt 0:00:16]} Rc2 {[%emt 0:01:47]} 38. Nxf5 {[%emt 0:01:03]} Rxe2 {[%emt 0:00:26]} 39. Nxh6+ {[%emt 0:00:00]} Kg7 {[%emt 0:00:00]} 40. Nxg4 {[%emt 0:00:00]} Rxd4 {[%emt 0:00:00]} 41. Nf2 {[%emt 0:01:22]} Rdd2 {[%emt 0:01:00]} 42. Kg2 {[%emt 0:00:54]} Bc5 {[%emt 0:00:29]} 43. Rc1 {[%emt 0:00:46]} Rxf2+ {[%emt 0:00:08]} 44. Kh3 {[%emt 0:01:24]} Rxh2+ {[%emt 0:00:21]} 45. Kg4 {[%emt 0:00:16]} Rhg2+ {[%emt 0:00:42]} 46. Kh3 {[%emt 0:00:23]} Rg5 {[%emt 0:01:20]} 47. b4 {[%emt 0:01:17]} Bd6 {[%emt 0:00:22]} 48. Rh1 {[%emt 0:00:21]} Rh5+ {[%emt 0:00:12]} 49. Kg4 {[%emt 0:00:24]} Rxh1 {[%emt 0:00:07]} 50. Kf5 {[%emt 0:00:20]} Rf1+ {[%emt 0:00:16]} 51. Ke6 {[%emt 0:00:25]} Bxb4 {[%emt 0:00:59]} 52. axb4 {[%emt 0:00:21]} Re1+ {[%emt 0:00:06]} 53. Kf5 {[%emt 0:00:31]} Rf2+ {[%emt 0:00:07]} 54. Kg4 {[%emt 0:00:23]} Rg1+ {[%emt 0:00:07]} 55. Kh3 {[%emt 0:00:44]} Rf6 {[%emt 0:00:18]} 56. Kh2 {[%emt 0:00:14]} Rg5 {[%emt 0:00:07]} 57. Kh3 {[%emt 0:00:49]} Rh6# {[%emt 0:00:02]} 0-1

[Event "Hungarian Youth-ch U12 2022"]
[Site "Eger"]
[Date "2022.07.30"]
[Round "8.9"]
[White "Balazs, Szabina Zoe"]
[Black "Brieber, Dorottya"]
[Result "0-1"]
[ECO "B01"]
[WhiteElo "1437"]
[BlackElo "1242"]
[Annotator "NA RC COMBH"]
[PlyCount "70"]
[EventDate "2022.07.21"]
[EventType "tourn"]
[EventCountry "HUN"]
[SourceTitle "playchess.com"]
[Source "ChessBase"]
[SourceQuality "1"]
[TimeControl "40/5400+30:1800+30"]

1. e4 {[%emt 0:00:37]} d5 {[%emt 0:00:41]} 2. exd5 {[%emt 0:00:46]} Nf6 {[%emt 0:00:08]} 3. d4 {[%emt 0:00:46]} Nxd5 {[%emt 0:00:42]} 4. c4 {[%emt 0:01:24]} Nf6 {[%emt 0:00:20]} 5. Nc3 {[%emt 0:01:08]} Bf5 {[%emt 0:00:30]} 6. b3 {[%emt 0:03:27]} Nc6 {[%emt 0:00:27]} 7. Be3 {[%emt 0:01:34]} Nb4 {[%emt 0:01:00]} 8. Rc1 {[%emt 0:00:45]} e6 {[%emt 0:01:56]} 9. Be2 {[%emt 0:05:04]} Be7 {[%emt 0:01:05]} 10. Nf3 {[%emt 0:01:05]} Qd7 {[%emt 0:01:09]} 11. Ne5 {[%emt 0:04:42]} Qd8 {[%emt 0:00:26]} 12. O-O {[%emt 0:00:39]} O-O {[%emt 0:00:12]} 13. Nf3 {[%emt 0:01:30]} Ne4 {[%emt 0:04:05]} 14. Nxe4 {[%emt 0:01:40]} Bxe4 {[%emt 0:00:47]} 15. Qd2 {[%emt 0:01:35]} Qd7 {[%emt 0:01:13]} 16. Ne5 {[%emt 0:03:02]} Qd8 {[%emt 0:02:20]} 17. Nf3 {[%emt 0:12:24]} c6 {[%emt 0:06:16]} 18. Ne5 {[%emt 0:02:17]} Qc7 {[%emt 0:02:09]} 19. Bf4 {[%emt 0:00:53]} Qc8 {[%emt 0:01:14]} 20. f3 {[%emt 0:08:54]} Bf5 {[%emt 0:03:06]} 21. h4 {[%emt 0:04:44]} Na6 {[%emt 0:01:30]} 22. g4 {[%emt 0:00:14]} f6 {[%emt 0:01:09]} 23. Nxc6 {[%emt 0:01:45]} Qxc6 {[%emt 0:01:13]} 24. gxf5 {[%emt 0:00:06]} exf5 {[%emt 0:01:21]} 25. d5 {[%emt 0:00:29]} Bc5+ {[%emt 0:00:45]} 26. Kh1 {[%emt 0:01:03]} Qd7 {[%emt 0:00:47]} 27. Bd3 {[%emt 0:02:52]} Qf7 {[%emt 0:01:57]} 28. Bxf5 {[%emt 0:03:06]} Qh5 {[%emt 0:02:11]} 29. Be6+ {[%emt 0:01:25]} Kh8 {[%emt 0:01:16]} 30. Bg3 {[%emt 0:01:28]} f5 {[%emt 0:00:37]} 31. Qh2 {[%emt 0:02:24]} Rad8 {[%emt 0:04:18]} 32. Rc2 {[%emt 0:04:38]} Nb4 {[%emt 0:03:00]} 33. Rd2 {[%emt 0:00:12]} Be3 {[%emt 0:02:52]} 34. Re2 {[%emt 0:00:33]} f4 {[%emt 0:00:31]} 35. Bf2 {[%emt 0:00:36]} Qxf3+ {[%emt 0:00:23]} 0-1

[Event "Hungarian Youth-ch U12 2022"]
[Site "Eger"]
[Date "2022.07.31"]
[Round "9.1"]
[White "Karacsonyi, Bank"]
[Black "Horvath, Andras"]
[Result "1/2-1/2"]
[ECO "C56"]
[WhiteElo "1791"]
[BlackElo "2251"]
[Annotator "RC"]
[PlyCount "98"]
[EventDate "2022.07.21"]
[EventType "tourn"]
[EventCountry "HUN"]
[SourceTitle "playchess.com"]
[Source "ChessBase"]
[SourceQuality "1"]
[TimeControl "40/5400+30:1800+30"]

1. e4 {[%emt 0:00:49]} e5 {[%emt 0:00:36]} 2. Nf3 {[%emt 0:00:05]} Nc6 {[%emt 0:00:08]} 3. Bc4 {[%emt 0:00:04]} Nf6 {[%emt 0:00:19]} 4. d4 {[%emt 0:00:04]} exd4 {[%emt 0:02:27]} 5. O-O {[%emt 0:00:06]} Nxe4 {[%emt 0:02:22]} 6. Re1 {[%emt 0:00:06]} d5 {[%emt 0:00:59]} 7. Bxd5 {[%emt 0:00:05]} Qxd5 {[%emt 0:00:05]} 8. Nc3 {[%emt 0:00:03]} Qh5 {[%emt 0:00:18]} 9. Nxe4 {[%emt 0:00:05]} Be6 {[%emt 0:00:57]} 10. Bg5 {[%emt 0:00:06]} Bd6 {[%emt 0:01:39]} 11. Nxd6+ {[%emt 0:00:15]} cxd6 {[%emt 0:00:12]} 12. Bf4 {[%emt 0:00:02]} Qd5 {[%emt 0:00:54]} 13. c3 {[%emt 0:01:34]} O-O {[%emt 0:02:21]} 14. Nxd4 {[%emt 0:02:38]} Nxd4 {[%emt 0:01:13]} 15. Qxd4 {[%emt 0:02:48]} Qxd4 {[%emt 0:00:36]} 16. cxd4 {[%emt 0:00:02]} d5 {[%emt 0:01:40]} 17. Rac1 {[%emt 0:01:01]} Rac8 {[%emt 0:01:43]} 18. Bc7 {[%emt 0:00:57]} h6 {[%emt 0:05:30]} 19. Rc3 {[%emt 0:01:25]} Rfe8 {[%emt 0:12:09]} 20. Rec1 {[%emt 0:01:46]} Bd7 {[%emt 0:01:55]} 21. f3 {[%emt 0:14:24]} Re2 {[%emt 0:07:18]} 22. R3c2 {[%emt 0:09:42]} Rxc2 {[%emt 0:09:32]} 23. Rxc2 {[%emt 0:00:06]} Bc6 {[%emt 0:01:54]} 24. Bd6 {[%emt 0:01:39]} Re8 {[%emt 0:01:25]} 25. Kf2 {[%emt 0:00:14]} Kh7 {[%emt 0:04:14]} 26. Bc5 {[%emt 0:02:07]} a6 {[%emt 0:01:25]} 27. b3 {[%emt 0:00:46]} Kg6 {[%emt 0:02:11]} 28. Bd6 {[%emt 0:02:42]} Re6 {[%emt 0:05:09]} 29. Be5 {[%emt 0:01:05]} f6 {[%emt 0:06:32]} 30. Bf4 {[%emt 0:00:51]} Kf7 {[%emt 0:01:42]} 31. g4 {[%emt 0:00:30]} Ke7 {[%emt 0:02:18]} 32. a4 {[%emt 0:01:23]} Kd7 {[%emt 0:05:39]} 33. b4 {[%emt 0:03:00]} g5 {[%emt 0:02:59]} 34. Bg3 {[%emt 0:00:56]} Kd8 {[%emt 0:03:50]} 35. Ra2 {[%emt 0:03:48]} Be8 {[%emt 0:02:00]} 36. h4 {[%emt 0:03:23]} Rb6 {[%emt 0:01:38]} 37. hxg5 {[%emt 0:03:14]} hxg5 {[%emt 0:00:15]} 38. b5 {[%emt 0:02:36]} axb5 {[%emt 0:00:54]} 39. Rc2 {[%emt 0:02:27]} Bc6 {[%emt 0:02:06]} 40. Rb2 {[%emt 0:00:00]} b4 {[%emt 0:00:00]} 41. Bd6 {[%emt 0:03:26]} Bxa4 {[%emt 0:09:22]} 42. Bc5 {[%emt 0:02:43]} Rb5 {[%emt 0:01:21]} 43. Rxb4 {[%emt 0:01:14]} Rxb4 {[%emt 0:00:16]} 44. Bxb4 {[%emt 0:00:02]} b5 {[%emt 0:01:38]} 45. f4 {[%emt 0:01:12]} gxf4 {[%emt 0:02:19]} 46. Kf3 {[%emt 0:00:37]} Kd7 {[%emt 0:01:17]} 47. Kxf4 {[%emt 0:00:18]} Ke6 {[%emt 0:00:42]} 48. Bc5 {[%emt 0:00:12]} Bd1 {[%emt 0:03:42]} 49. Bb4 {[%emt 0:00:11]} Bc2 {[%emt 0:00:12]} 1/2-1/2

[Event "Hungarian Youth-ch U12 2022"]
[Site "Eger"]
[Date "2022.07.31"]
[Round "9.2"]
[White "Horvath, Matyas Sandor"]
[Black "Bod, Marton"]
[Result "0-1"]
[ECO "B40"]
[WhiteElo "1431"]
[BlackElo "1758"]
[Annotator "NA RC"]
[PlyCount "100"]
[EventDate "2022.07.21"]
[EventType "tourn"]
[EventCountry "HUN"]
[SourceTitle "playchess.com"]
[Source "ChessBase"]
[SourceQuality "1"]
[TimeControl "40/5400+30:1800+30"]

1. e4 {[%emt 0:00:32]} c5 {[%emt 0:00:37]} 2. Nf3 {[%emt 0:00:07]} e6 {[%emt 0:00:25]} 3. d3 {[%emt 0:00:30]} d6 {[%emt 0:04:23]} 4. g3 {[%emt 0:01:45]} g6 {[%emt 0:01:17]} 5. Bg2 {[%emt 0:00:58]} Bg7 {[%emt 0:00:23]} 6. Nbd2 {[%emt 0:01:05]} Ne7 {[%emt 0:01:01]} 7. O-O {[%emt 0:00:57]} Nbc6 {[%emt 0:01:21]} 8. c3 {[%emt 0:01:26]} O-O {[%emt 0:02:03]} 9. Qc2 {[%emt 0:01:41]} b6 {[%emt 0:01:31]} 10. Nb3 {[%emt 0:04:06]} a5 {[%emt 0:00:53]} 11. a4 {[%emt 0:00:43]} Ba6 {[%emt 0:01:09]} 12. Re1 {[%emt 0:01:14]} Rc8 {[%emt 0:01:06]} 13. Be3 {[%emt 0:02:03]} Qd7 {[%emt 0:02:07]} 14. d4 {[%emt 0:03:45]} cxd4 {[%emt 0:03:44]} 15. Nbxd4 {[%emt 0:01:14]} d5 {[%emt 0:01:18]} 16. Nxc6 {[%emt 0:01:20]} Qxc6 {[%emt 0:03:09]} 17. exd5 {[%emt 0:02:38]} Nxd5 {[%emt 0:00:44]} 18. Bd4 {[%emt 0:01:29]} Rfd8 {[%emt 0:06:30]} 19. Bxg7 {[%emt 0:04:49]} Kxg7 {[%emt 0:00:15]} 20. Qe4 {[%emt 0:01:44]} Qc7 {[%emt 0:03:36]} 21. Qe5+ {[%emt 0:03:49]} Qxe5 {[%emt 0:00:58]} 22. Rxe5 {[%emt 0:00:33]} Kf6 {[%emt 0:01:23]} 23. Re4 {[%emt 0:02:31]} Bb7 {[%emt 0:03:40]} 24. Rd4 {[%emt 0:02:53]} Ne7 {[%emt 0:01:58]} 25. Rf4+ {[%emt 0:05:52]} Nf5 {[%emt 0:09:03]} 26. Ne1 {[%emt 0:07:24]} Bxg2 {[%emt 0:01:33]} 27. Nxg2 {[%emt 0:01:04]} Kg7 {[%emt 0:02:40]} 28. Ne3 {[%emt 0:04:59]} Nxe3 {[%emt 0:01:57]} 29. fxe3 {[%emt 0:00:16]} Rd2 {[%emt 0:01:15]} 30. Rf2 {[%emt 0:02:41]} Rcd8 {[%emt 0:00:11]} 31. Raf1 {[%emt 0:01:37]} Rxf2 {[%emt 0:04:40]} 32. Rxf2 {[%emt 0:00:09]} Rd3 {[%emt 0:02:37]} 33. Rf3 {[%emt 0:06:00]} f5 {[%emt 0:00:43]} 34. Kg2 {[%emt 0:01:38]} e5 {[%emt 0:02:06]} 35. Rf2 {[%emt 0:02:49]} Rxe3 {[%emt 0:00:13]} 36. Rc2 {[%emt 0:00:08]} Rd3 {[%emt 0:01:05]} 37. Kf2 {[%emt 0:00:23]} Kf6 {[%emt 0:00:26]} 38. Ke2 {[%emt 0:00:21]} e4 {[%emt 0:00:30]} 39. b4 {[%emt 0:02:09]} Ke6 {[%emt 0:01:52]} 40. b5 {[%emt 0:00:00]} Kd5 {[%emt 0:00:00]} 41. c4+ {[%emt 0:02:14]} Kc5 {[%emt 0:00:48]} 42. Rc1 {[%emt 0:16:03]} Rd4 {[%emt 0:01:31]} 43. Ke3 Rxc4 44. Ra1 {[%emt 0:03:25]} Kb4 {[%emt 0:01:19]} 45. Ra2 {[%emt 0:00:23]} Kb3 {[%emt 0:00:17]} 46. Ra1 {[%emt 0:00:27]} Rxa4 {[%emt 0:00:17]} 47. Rb1+ {[%emt 0:00:17]} Kc4 {[%emt 0:00:08]} 48. Rb2 {[%emt 0:00:16]} Rb4 {[%emt 0:00:39]} 49. Rc2+ {[%emt 0:00:18]} Kxb5 {[%emt 0:00:05]} 50. Ra2 {[%emt 0:00:42]} a4 {[%emt 0:00:10]} 0-1

[Event "Hungarian Youth-ch U12 2022"]
[Site "Eger"]
[Date "2022.07.31"]
[Round "9.3"]
[White "Lehocz, Jozsef Jr."]
[Black "Feher, Botond"]
[Result "1/2-1/2"]
[ECO "B32"]
[WhiteElo "1919"]
[BlackElo "1747"]
[Annotator "NA RC"]
[PlyCount "80"]
[EventDate "2022.07.21"]
[EventType "tourn"]
[EventCountry "HUN"]
[SourceTitle "playchess.com"]
[Source "ChessBase"]
[SourceQuality "1"]
[TimeControl "40/5400+30:1800+30"]

1. e4 {[%emt 0:00:37]} c5 {[%emt 0:00:47]} 2. Nf3 {[%emt 0:00:14]} Nc6 {[%emt 0:00:45]} 3. d4 {[%emt 0:00:20]} cxd4 {[%emt 0:00:05]} 4. c3 {[%emt 0:00:24]} Nf6 {[%emt 0:00:12]} 5. e5 {[%emt 0:00:11]} Nd5 {[%emt 0:00:04]} 6. Bc4 {[%emt 0:01:44]} Nb6 {[%emt 0:00:05]} 7. Bb3 {[%emt 0:00:06]} d5 {[%emt 0:02:03]} 8. exd6 {[%emt 0:00:29]} Qxd6 {[%emt 0:00:10]} 9. O-O {[%emt 0:00:19]} Be6 {[%emt 0:00:47]} 10. Bxe6 {[%emt 0:00:43]} Qxe6 {[%emt 0:00:08]} 11. Nxd4 {[%emt 0:00:42]} Nxd4 {[%emt 0:00:05]} 12. Qxd4 {[%emt 0:00:06]} Rd8 {[%emt 0:00:05]} 13. Qh4 {[%emt 0:00:48]} Qe2 {[%emt 0:00:08]} 14. Nd2 {[%emt 0:00:23]} Rxd2 {[%emt 0:00:17]} 15. Bxd2 {[%emt 0:00:25]} Qxd2 {[%emt 0:00:05]} 16. Rad1 {[%emt 0:00:16]} Qh6 {[%emt 0:01:50]} 17. Qg3 {[%emt 0:00:17]} Qc6 {[%emt 0:02:03]} 18. Rd4 {[%emt 0:00:47]} f6 {[%emt 0:01:39]} 19. Rfd1 {[%emt 0:07:33]} g6 {[%emt 0:05:34]} 20. Qb8+ {[%emt 0:12:34]} Kf7 {[%emt 0:00:22]} 21. Rd8 {[%emt 0:00:26]} Nc4 {[%emt 0:28:12]} 22. Rc8 {[%emt 0:25:46]} (22. h3 $1 $15) 22... Qe6 {[%emt 0:01:34]} 23. h3 {[%emt 0:12:28]} ({Avoid the trap} 23. Qxb7 $2 Nd6 24. Rxf8+ Rxf8 $19) 23... Nd6 {[%emt 0:03:36]} (23... Nxb2 $17 24. Rdd8 Qe1+ 25. Kh2 Qe5+ 26. Qxe5 fxe5) 24. Rd8 $15 {[%emt 0:01:28]} f5 {[%emt 0:14:37]} 25. Qc7 {[%emt 0:03:44]} Kg8 {[%emt 0:01:01]} 26. Qb8 {[%emt 0:07:00]} Kf7 {[%emt 0:00:11]} 27. Qc7 {[%emt 0:04:47]} Kf6 {[%emt 0:14:14]} 28. Qc5 {[%emt 0:03:43]} Qe5 {[%emt 0:02:25]} 29. Qc7 {[%emt 0:01:59]} Bg7 {[%emt 0:02:12]} 30. Rd7 {[%emt 0:02:03]} Re8 {[%emt 0:10:19]} 31. R1xd6+ {[%emt 0:01:45]} exd6 {[%emt 0:00:04]} 32. Rxg7 {[%emt 0:04:09]} Qe1+ {[%emt 0:00:15]} 33. Kh2 {[%emt 0:00:07]} Qe5+ {[%emt 0:00:03]} 34. g3 {[%emt 0:01:15]} Re7 {[%emt 0:00:05]} 35. Rxe7 {[%emt 0:00:09]} Qxe7 {[%emt 0:00:04]} 36. Qc4 {[%emt 0:00:39]} b6 {[%emt 0:01:08]} 37. Qh4+ {[%emt 0:02:06]} Ke6 {[%emt 0:02:17]} 38. Qa4 {[%emt 0:00:58]} Kf6 {[%emt 0:00:11]} 39. Qh4+ {[%emt 0:01:05]} Ke6 {[%emt 0:00:09]} 40. Qa4 {[%emt 0:00:00]} Ke5 1/2-1/2